[Event "2nd Kalyan Dombivali 2019"]
[Site "Kalyan"]
[Date "2019.02.03"]
[Round "10"]
[White "Akshit Jha"]
[Black "Soni Deepak R"]
[Result "1/2-1/2"]
[ECO "C54"]
[WhiteElo "1604"]
[BlackElo "1425"]
[Annotator "NA RC"]
[PlyCount "74"]
[EventDate "2019.01.28"]
[EventType "swiss"]
[EventRounds "10"]
[EventCountry "IND"]
[SourceTitle "playchess.com"]
[Source "ChessBase"]
[SourceQuality "1"]
[TimeControl "5400+30"]

1. e4 {[%emt 0:08:11]} e5 {[%emt 0:00:00]} 2. Nf3 {[%emt 0:00:10]} Nc6 {[%emt 0:00:00]} 3. Bc4 {[%emt 0:00:09]} Bc5 {[%emt 0:00:41]} 4. c3 {[%emt 0:00:07]} Nf6 {[%emt 0:00:05]} 5. d3 {[%emt 0:00:02]} d6 {[%emt 0:00:17]} 6. Bb3 {[%emt 0:00:04]} a6 {[%emt 0:00:24]} 7. h3 {[%emt 0:00:03]} h6 {[%emt 0:00:12]} 8. Nbd2 {[%emt 0:00:49]} O-O {[%emt 0:01:05]} 9. Nf1 {[%emt 0:00:27]} Ne7 {[%emt 0:01:09]} 10. Ng3 {[%emt 0:00:25]} Ng6 {[%emt 0:00:20]} 11. O-O {[%emt 0:00:11]} Re8 {[%emt 0:01:59]} 12. d4 {[%emt 0:01:14]} Ba7 {[%emt 0:01:41]} 13. Bc2 {[%emt 0:00:34]} c6 {[%emt 0:02:37]} 14. Be3 {[%emt 0:01:45]} Be6 {[%emt 0:05:49]} 15. Qd2 {[%emt 0:03:45]} Kh7 {[%emt 0:06:01]} 16. Bd3 {[%emt 0:07:16]} Rc8 {[%emt 0:08:49]} 17. b4 {[%emt 0:07:58]} Bb8 {[%emt 0:06:39]} 18. c4 {[%emt 0:04:08]} d5 {[%emt 0:17:35]} 19. cxd5 {[%emt 0:01:49]} cxd5 {[%emt 0:00:37]} 20. dxe5 {[%emt 0:01:35]} dxe4 {[%emt 0:01:30]} 21. Nxe4 {[%emt 0:00:35]} Nxe4 {[%emt 0:05:25]} 22. Bxe4 {[%emt 0:00:04]} Qxd2 {[%emt 0:04:48]} 23. Bxd2 {[%emt 0:00:08]} Re7 {[%emt 0:01:42]} 24. Rfe1 {[%emt 0:03:37]} Kg8 {[%emt 0:03:58]} 25. Bxg6 {[%emt 0:01:28]} fxg6 {[%emt 0:00:03]} 26. Nd4 {[%emt 0:03:12]} Bd5 {[%emt 0:01:57]} 27. f4 {[%emt 0:03:18]} Ba7 {[%emt 0:00:44]} 28. Be3 {[%emt 0:00:55]} Rc4 {[%emt 0:00:18]} 29. Nf5 {[%emt 0:00:41]} gxf5 {[%emt 0:00:29]} 30. Bxa7 {[%emt 0:00:15]} Rxf4 {[%emt 0:02:13]} 31. Bc5 {[%emt 0:00:09]} Re8 {[%emt 0:01:17]} 32. Red1 {[%emt 0:00:31]} Bc6 {[%emt 0:00:54]} 33. Bd6 {[%emt 0:03:56]} Re4 {[%emt 0:01:17]} 34. Rd2 {[%emt 0:01:21]} Kf7 {[%emt 0:09:34]} 35. a4 {[%emt 0:01:10]} Rd8 {[%emt 0:02:42]} 36. Rb2 {[%emt 0:00:16]} Rc4 {[%emt 0:04:15]} 37. Kf2 {[%emt 0:04:57]} Rc8 {[%emt 0:00:54]} 1/2-1/2

[Event "2nd Kalyan Dombivali 2019"]
[Site "Kalyan"]
[Date "2019.02.03"]
[Round "10"]
[White "Bhat Sanjay"]
[Black "Saranya, Y."]
[Result "1-0"]
[ECO "A20"]
[WhiteElo "1597"]
[BlackElo "1977"]
[Annotator "NA RC"]
[PlyCount "103"]
[EventDate "2019.01.28"]
[EventType "swiss"]
[EventRounds "10"]
[EventCountry "IND"]
[SourceTitle "playchess.com"]
[Source "ChessBase"]
[SourceQuality "1"]
[TimeControl "5400+30"]

{[%evp 8,103,14,-62,-24,-30,-20,-23,-16,-33,-31,-29,-16,-8,41,8,44,18,25,22,39,20,25,24,20,33,39,45,47,0,75,58,91,70,137,32,82,71,58,-19,187,196,222,255,303,32767,264,314,279,133,149,114,607,762,699,731,766,32767,32767,32767,32767,384,478,539,450,440,32767,32767,32767,32767,32767,32767,32767,32767,32767,32767,32767,32767,469,553,635,580,614,738,32767,864,29987,29990,29989,29991,29995,29996,29997,645,29997,29997,29997,29998]} 1. c4 {[%emt 0:05:54]} e5 {[%emt 0:14:09]} 2. g3 {[%emt 0:00:05]} Nc6 {[%emt 0:00:58]} 3. Bg2 {[%emt 0:00:08]} Bc5 {[%emt 0:00:40]} 4. Nc3 {[%emt 0:00:04]} d6 {[%emt 0:00:29]} 5. e4 {[%emt 0:02:47]} a6 {[%emt 0:06:18]} 6. Nge2 {[%emt 0:00:08]} Nge7 {[%emt 0:04:08]} 7. O-O {[%emt 0:00:16]} h5 {[%emt 0:00:07]} 8. h3 {[%emt 0:01:50]} Be6 {[%emt 0:02:34]} 9. d3 {[%emt 0:01:40]} Qd7 {[%emt 0:03:03]} 10. Kh2 {[%emt 0:01:52]} f5 {[%emt 0:05:16]} ({Black should try} 10... f6 $11) 11. exf5 {[%emt 0:15:30]} Nxf5 {[%emt 0:04:06]} 12. Bg5 {[%emt 0:06:18]} Nd8 {[%emt 0:08:58]} 13. Ne4 {[%emt 0:14:12]} Nf7 {[%emt 0:08:16]} 14. Bd2 {[%emt 0:01:16]} Ba7 {[%emt 0:02:48]} 15. b4 {[%emt 0:00:06]} c6 {[%emt 0:03:07]} 16. Rc1 {[%emt 0:05:01]} Qe7 {[%emt 0:02:35]} 17. a4 {[%emt 0:02:09]} Rd8 {[%emt 0:05:16]} 18. Qc2 {[%emt 0:00:15]} g5 {[%emt 0:02:30]} (18... O-O $11) 19. Qb2 {[%emt 0:00:13]} Rg8 {[%emt 0:02:12]} 20. b5 {[%emt 0:04:17]} g4 {[%emt 0:02:04] [#]} 21. hxg4 {[%emt 0:01:59]} (21. b6 $1 $16 {[%cal Rb6a7]} gxh3 22. Bf3 (22. bxa7 hxg2 23. Kxg2 Nh4+ 24. Kh1 Bh3 $16) (22. Bxh3 Bb8 $14)) 21... hxg4 {[%emt 0:00:05]} 22. b6 {[%emt 0:00:08]} Bb8 {[%emt 0:00:30]} 23. d4 {[%emt 0:01:16]} ({White should try} 23. Kg1 $16) 23... c5 $2 {[%emt 0:05:17]} (23... Bxc4 $11 {and Black is okay.} 24. Rxc4 d5) 24. d5 {[%emt 0:03:32]} Bc8 {[%emt 0:00:35]} 25. f3 {[%emt 0:04:09]} N7h6 {[%emt 0:03:53]} 26. f4 {[%emt 0:00:36]} Nf7 {[%emt 0:02:06]} 27. Kg1 {[%emt 0:00:51]} Rh8 {[%emt 0:01:01]} 28. Kf2 {[%emt 0:00:09]} (28. Qa3 $18 {is more deadly.}) 28... Kd7 {[%emt 0:00:23]} 29. Qc2 {[%emt 0:00:28]} Nd4 $2 {[%emt 0:02:40]} (29... Rdf8 $16) 30. Nxd4 {[%emt 0:00:09]} exd4 {[%emt 0:00:06]} 31. Rce1 {[%emt 0:00:20]} Rde8 {[%emt 0:03:01]} 32. Nxc5+ {[%emt 0:06:59]} dxc5 {[%emt 0:00:04]} 33. Rxe7+ {[%emt 0:00:04]} Rxe7 {[%emt 0:00:04]} 34. f5 {[%emt 0:03:36]} Kd8 {[%emt 0:02:22]} 35. f6 {[%emt 0:00:13]} Ree8 {[%emt 0:00:04]} 36. a5 {[%emt 0:01:43]} Nd6 {[%emt 0:00:32]} 37. Bg5 {[%emt 0:00:15]} Nf7 {[%emt 0:01:02]} 38. Bh4 {[%emt 0:00:05]} Rh5 {[%emt 0:01:11]} 39. Kg1 {[%emt 0:00:36]} Rhe5 {[%emt 0:00:36]} 40. Qg6 {[%emt 0:00:26]} Rf8 $1 $11 {[%emt 0:00:04] and Black has nothing to worry.} 41. Qg7 {[%emt 0:00:37]} (41. Be4 Bd6) 41... Bd6 {[%emt 0:00:03]} 42. Qg6 {[%emt 0:02:40]} Bd7 $2 {[%emt 0:00:46]} 43. Be4 {[%emt 0:00:21]} Ba4 {[%emt 0:02:19]} 44. Qxg4 {[%emt 0:00:21]} Bb3 {[%emt 0:00:07]} 45. Rc1 {[%emt 0:01:35]} (45. Bg2 $142 Re4 46. Bxe4) 45... Ba4 {[%emt 0:00:32]} 46. Bf5 {[%emt 0:01:32]} Nh6 {[%emt 0:01:26]} 47. f7+ {[%emt 0:00:24]} Be7 {[%emt 0:00:02]} 48. Qg7 {[%emt 0:03:38] Double Attack} Rxf7 {[%emt 0:00:52]} 49. Qxe5 {[%emt 0:00:18]} Nxf5 {[%emt 0:00:08]} 50. Qb8+ {[%emt 0:00:34]} (50. Qc7+ $142 Ke8 51. Qc8+ Bd8 52. Qxd8#) 50... Kd7 {[%emt 0:00:04]} 51. Qxb7+ {[%emt 0:00:17]} Kd8 {[%emt 0:00:03]} 52. Qc7+ {[%emt 0:00:17]} 1-0

[Event "2nd Kalyan Dombivali 2019"]
[Site "Kalyan"]
[Date "2019.02.03"]
[Round "10"]
[White "Lund Rachit"]
[Black "Bagwe Suneet"]
[Result "1-0"]
[ECO "B41"]
[WhiteElo "1572"]
[BlackElo "1305"]
[Annotator "NA RC"]
[PlyCount "47"]
[EventDate "2019.01.28"]
[EventType "swiss"]
[EventRounds "10"]
[EventCountry "IND"]
[SourceTitle "playchess.com"]
[Source "ChessBase"]
[SourceQuality "1"]
[TimeControl "5400+30"]

1. e4 {[%emt 0:00:00]} c5 {[%emt 0:00:00]} 2. Nf3 {[%emt 0:00:00]} e6 {[%emt 0:00:00]} 3. d4 {[%emt 0:00:10]} cxd4 {[%emt 0:00:00]} 4. Nxd4 {[%emt 0:00:07]} a6 {[%emt 0:00:00]} 5. a4 {[%emt 0:07:34]} Nf6 {[%emt 0:03:15]} 6. Nc3 {[%emt 0:01:21]} Qc7 {[%emt 0:00:09]} 7. Be2 {[%emt 0:13:40]} Bb4 {[%emt 0:24:21]} 8. O-O {[%emt 0:01:39]} Bxc3 {[%emt 0:04:04]} 9. bxc3 {[%emt 0:00:37]} Nxe4 {[%emt 0:00:23]} 10. Bd3 {[%emt 0:00:33]} Nf6 {[%emt 0:02:19]} 11. Bb2 {[%emt 0:03:38]} Nc6 {[%emt 0:02:44]} 12. f4 {[%emt 0:02:02]} h5 {[%emt 0:13:12]} 13. Qe1 {[%emt 0:08:45]} b6 {[%emt 0:09:37]} 14. Nf5 {[%emt 0:13:38]} g6 {[%emt 0:09:01]} 15. c4 {[%emt 0:00:59]} gxf5 {[%emt 0:04:06]} 16. Bxf6 {[%emt 0:00:10]} Rg8 {[%emt 0:00:04]} 17. Bxf5 {[%emt 0:00:49]} Bb7 {[%emt 0:00:15]} 18. Bh7 {[%emt 0:00:55]} Rg6 {[%emt 0:03:36]} 19. Bxg6 {[%emt 0:00:13]} fxg6 {[%emt 0:00:05]} 20. Qg3 {[%emt 0:00:40]} Kf7 {[%emt 0:01:00]} 21. Bb2 {[%emt 0:03:52]} Ne7 {[%emt 0:02:22]} 22. Qc3 {[%emt 0:01:03]} Qc5+ {[%emt 0:00:11]} 23. Rf2 {[%emt 0:00:39]} Rf8 {[%emt 0:01:05]} 24. Qg7+ 1-0

[Event "2nd Kalyan Dombivali 2019"]
[Site "Kalyan"]
[Date "2019.02.03"]
[Round "10"]
[White "Midilesh MS"]
[Black "Gurav Sanmil"]
[Result "0-1"]
[ECO "C55"]
[WhiteElo "1558"]
[BlackElo "1311"]
[Annotator "NA RC"]
[PlyCount "65"]
[EventDate "2019.01.28"]
[EventType "swiss"]
[EventRounds "10"]
[EventCountry "IND"]
[SourceTitle "playchess.com"]
[Source "ChessBase"]
[SourceQuality "1"]
[TimeControl "5400+30"]

1. e4 {[%emt 0:00:08]} e5 {[%emt 0:00:00]} 2. Nf3 {[%emt 0:00:05]} Nc6 {[%emt 0:00:00]} 3. Bc4 {[%emt 0:00:07]} Nf6 {[%emt 0:00:00]} 4. d3 {[%emt 0:00:06]} Be7 {[%emt 0:00:05]} 5. c3 {[%emt 0:00:15]} O-O {[%emt 0:00:08]} 6. Bb3 d6 {[%emt 0:00:13]} 7. h3 {[%emt 0:01:04]} Na5 {[%emt 0:00:25]} 8. Bc2 {[%emt 0:01:55]} c5 {[%emt 0:00:13]} 9. Qe2 {[%emt 0:06:19]} Nc6 {[%emt 0:00:26]} 10. Nbd2 {[%emt 0:07:37]} Re8 {[%emt 0:03:04]} 11. g4 {[%emt 0:07:53]} d5 {[%emt 0:15:15]} 12. Nf1 {[%emt 0:07:51]} d4 {[%emt 0:02:59]} 13. c4 {[%emt 0:09:13]} a6 {[%emt 0:13:04]} 14. Ng3 {[%emt 0:13:46]} b5 15. b3 {[%emt 0:00:19]} bxc4 {[%emt 0:13:16]} 16. bxc4 {[%emt 0:01:25]} Bf8 {[%emt 0:09:06]} 17. O-O {[%emt 0:01:22]} g6 {[%emt 0:04:35]} 18. Nh2 {[%emt 0:05:31]} Bg7 {[%emt 0:05:56]} 19. f4 {[%emt 0:10:12]} exf4 {[%emt 0:01:48]} 20. Bxf4 {[%emt 0:00:38]} Ne5 {[%emt 0:08:31]} 21. Qf2 {[%emt 0:15:24]} Nfd7 {[%emt 0:00:41]} 22. Rab1 {[%emt 0:03:37]} Rf8 {[%emt 0:01:55]} 23. Qg2 {[%emt 0:01:46]} Qa5 {[%emt 0:04:08]} 24. Ra1 {[%emt 0:03:06]} Rb8 {[%emt 0:01:03]} 25. Bb3 {[%emt 0:01:03]} Qc3 {[%emt 0:01:41]} 26. Rfd1 {[%emt 0:00:43]} Ra8 {[%emt 0:01:46]} 27. Rac1 {[%emt 0:01:10]} Qb4 {[%emt 0:00:39]} 28. Rb1 {[%emt 0:00:50]} Qa5 {[%emt 0:01:02]} 29. Kh1 {[%emt 0:00:33]} Bb7 {[%emt 0:00:50]} 30. Bd2 {[%emt 0:00:30]} Qd8 {[%emt 0:00:23]} 31. Ba4 {[%emt 0:00:30]} Bc8 {[%emt 0:00:34]} 32. Qe2 {[%emt 0:00:29]} Ra7 {[%emt 0:01:14]} 33. Kg2 {[%emt 0:01:03]} 0-1

[Event "2nd Kalyan Dombivali 2019"]
[Site "Kalyan"]
[Date "2019.02.03"]
[Round "10"]
[White "Kasar Prashant"]
[Black "Manthan Vijayrao Kale"]
[Result "0-1"]
[ECO "B50"]
[WhiteElo "1495"]
[BlackElo "1228"]
[Annotator "NA RC"]
[PlyCount "70"]
[EventDate "2019.01.28"]
[EventType "swiss"]
[EventRounds "10"]
[EventCountry "IND"]
[SourceTitle "playchess.com"]
[Source "ChessBase"]
[SourceQuality "1"]
[TimeControl "5400+30"]

1. e4 {[%emt 0:01:04]} c5 {[%emt 0:00:16]} 2. Nf3 {[%emt 0:00:16]} d6 {[%emt 0:00:21]} 3. h3 {[%emt 0:00:25]} Nf6 {[%emt 0:00:32]} 4. d3 {[%emt 0:00:23]} g6 {[%emt 0:00:49]} 5. c3 {[%emt 0:00:05]} Bg7 {[%emt 0:00:42]} 6. Be3 {[%emt 0:01:14]} Nc6 {[%emt 0:01:23]} 7. Qb3 {[%emt 0:00:58]} b6 {[%emt 0:03:47]} 8. Be2 {[%emt 0:02:09]} Bb7 {[%emt 0:01:33]} 9. O-O {[%emt 0:00:08]} O-O {[%emt 0:00:23]} 10. Nbd2 {[%emt 0:01:32]} Nd7 {[%emt 0:04:50]} 11. d4 {[%emt 0:03:10]} cxd4 {[%emt 0:03:41]} 12. cxd4 {[%emt 0:00:46]} Rc8 {[%emt 0:00:55]} 13. Rac1 {[%emt 0:03:52]} e5 {[%emt 0:05:13]} 14. Nc4 {[%emt 0:03:52]} Nxd4 {[%emt 0:01:49]} 15. Bxd4 {[%emt 0:05:13]} exd4 {[%emt 0:00:28]} 16. Nxd6 {[%emt 0:00:41]} Nc5 {[%emt 0:02:20]} 17. Rxc5 {[%emt 0:00:54]} Qxd6 {[%emt 0:00:20]} 18. Rxc8 {[%emt 0:01:56]} Bxc8 {[%emt 0:01:02]} 19. Rd1 {[%emt 0:04:45]} Be6 {[%emt 0:05:05]} 20. Qa4 {[%emt 0:00:37]} Qc7 {[%emt 0:00:41]} 21. b4 {[%emt 0:18:02]} Rc8 {[%emt 0:04:27]} 22. a3 {[%emt 0:11:40]} Qc3 {[%emt 0:01:39]} 23. Qxa7 {[%emt 0:05:24]} Bb3 {[%emt 0:00:49]} 24. Rd3 {[%emt 0:04:06]} Qc1+ {[%emt 0:00:07]} 25. Kh2 {[%emt 0:04:02]} Bc4 {[%emt 0:02:02]} 26. Rd1 {[%emt 0:06:17]} Qf4+ {[%emt 0:00:12]} 27. g3 {[%emt 0:00:40]} Qxe4 {[%emt 0:00:20]} 28. Bxc4 {[%emt 0:05:01]} Qxf3 {[%emt 0:00:14]} 29. Qa6 {[%emt 0:02:20]} Qxf2+ {[%emt 0:01:17]} 30. Kh1 {[%emt 0:00:02]} Qf3+ {[%emt 0:00:50]} 31. Kh2 {[%emt 0:01:14]} Rxc4 {[%emt 0:00:08]} 32. Qxc4 {[%emt 0:01:58]} Qxd1 {[%emt 0:00:31]} 33. Qc8+ {[%emt 0:00:05]} Bf8 {[%emt 0:00:09]} 34. Qd8 {[%emt 0:00:01]} Qe2+ {[%emt 0:00:19]} 35. Kg1 {[%emt 0:00:07]} d3 {[%emt 0:00:12]} 0-1

[Event "2nd Kalyan Dombivali 2019"]
[Site "Kalyan"]
[Date "2019.02.03"]
[Round "10"]
[White "Isha Pritam Inamdar"]
[Black "Shivshankar Iyer S"]
[Result "0-1"]
[ECO "B30"]
[WhiteElo "1380"]
[BlackElo "1619"]
[Annotator "NA RC"]
[PlyCount "114"]
[EventDate "2019.01.28"]
[EventType "swiss"]
[EventRounds "10"]
[EventCountry "IND"]
[SourceTitle "playchess.com"]
[Source "ChessBase"]
[SourceQuality "1"]
[TimeControl "5400+30"]

1. e4 {[%emt 0:04:13]} c5 {[%emt 0:00:00]} 2. Nf3 {[%emt 0:00:11]} Nc6 {[%emt 0:00:00]} 3. Bb5 {[%emt 0:00:06]} e6 {[%emt 0:00:00]} 4. Bxc6 {[%emt 0:00:05]} dxc6 {[%emt 0:00:00]} 5. O-O {[%emt 0:00:08]} Nf6 {[%emt 0:00:17]} 6. d3 {[%emt 0:00:06]} Be7 {[%emt 0:00:03]} 7. Nc3 {[%emt 0:00:26]} b6 {[%emt 0:00:09]} 8. Bg5 {[%emt 0:01:12]} h6 {[%emt 0:00:47]} 9. Be3 {[%emt 0:02:18]} Qc7 {[%emt 0:01:25]} 10. h3 {[%emt 0:01:44]} g5 {[%emt 0:00:28]} 11. Nd2 {[%emt 0:01:21]} e5 {[%emt 0:01:28]} 12. Nc4 {[%emt 0:05:55]} Be6 {[%emt 0:00:08]} 13. Qe1 {[%emt 0:00:56]} Nh5 {[%emt 0:01:48]} 14. f3 {[%emt 0:13:05]} Nf4 {[%emt 0:01:59]} 15. Ne2 {[%emt 0:00:20]} h5 {[%emt 0:03:13]} 16. Bd2 {[%emt 0:06:13]} O-O-O {[%emt 0:01:10]} 17. Bc3 {[%emt 0:04:25]} f6 {[%emt 0:00:45]} 18. a4 {[%emt 0:01:00]} Qd7 {[%emt 0:00:36]} 19. a5 {[%emt 0:02:32]} b5 {[%emt 0:01:24]} 20. Ne3 {[%emt 0:00:39]} g4 {[%emt 0:01:29]} 21. hxg4 {[%emt 0:14:01]} hxg4 {[%emt 0:00:31]} 22. fxg4 {[%emt 0:00:31]} c4 {[%emt 0:18:16]} 23. Nxf4 {[%emt 0:06:58]} exf4 {[%emt 0:00:44]} 24. Rxf4 {[%emt 0:00:15]} Bd6 {[%emt 0:02:14]} 25. Rf3 {[%emt 0:01:58]} Bxg4 {[%emt 0:00:29]} 26. Nxg4 {[%emt 0:08:52]} Qxg4 {[%emt 0:00:24]} 27. Bxf6 {[%emt 0:00:36]} Bc5+ {[%emt 0:00:15]} 28. d4 {[%emt 0:00:51]} Rxd4 {[%emt 0:00:15]} 29. Bxh8 {[%emt 0:11:04]} Rd2+ {[%emt 0:00:11]} 30. Rf2 {[%emt 0:01:54]} Rxf2 {[%emt 0:01:17]} 31. Qxf2 {[%emt 0:00:32]} Bxf2+ {[%emt 0:00:07]} 32. Kxf2 {[%emt 0:00:04]} Qh4+ {[%emt 0:00:06]} 33. Kf3 {[%emt 0:00:19]} Qxh8 {[%emt 0:00:05]} 34. c3 {[%emt 0:00:12]} Qf6+ {[%emt 0:00:31]} 35. Ke2 {[%emt 0:01:01]} Qf4 {[%emt 0:00:17]} 36. Rf1 {[%emt 0:00:17]} Qxe4+ {[%emt 0:00:09]} 37. Kf2 {[%emt 0:00:25]} Qc2+ {[%emt 0:00:17]} 38. Kf3 {[%emt 0:00:15]} Qxb2 {[%emt 0:00:18]} 39. g4 {[%emt 0:00:02]} Qxc3+ {[%emt 0:00:10]} 40. Kf4 {[%emt 0:00:05]} Qd2+ {[%emt 0:00:13]} 41. Kg3 {[%emt 0:00:23]} c3 {[%emt 0:00:07]} 42. Rf8+ {[%emt 0:00:20]} Kb7 {[%emt 0:00:30]} 43. Rf7+ {[%emt 0:00:12]} Ka6 {[%emt 0:00:07]} 44. Rf2 {[%emt 0:00:11]} Qxf2+ {[%emt 0:00:15]} 45. Kxf2 {[%emt 0:00:05]} c2 {[%emt 0:00:04]} 46. g5 {[%emt 0:00:03]} c1=Q {[%emt 0:00:08]} 47. g6 {[%emt 0:00:02]} Qc2+ {[%emt 0:00:08]} 48. Kf3 {[%emt 0:00:05]} Qxg6 {[%emt 0:00:08]} 49. Ke3 {[%emt 0:00:05]} Qg4 {[%emt 0:00:14]} 50. Kd3 {[%emt 0:00:05]} Qf4 {[%emt 0:00:16]} 51. Kc3 {[%emt 0:00:05]} Qc4+ {[%emt 0:00:18]} 52. Kd2 {[%emt 0:00:05]} b4 {[%emt 0:00:03]} 53. Ke3 {[%emt 0:00:05]} b3 {[%emt 0:00:05]} 54. Kd2 {[%emt 0:00:03]} b2 {[%emt 0:00:05]} 55. Ke3 {[%emt 0:00:02]} b1=Q 56. Kf3 Qbf1+ {[%emt 0:00:57]} 57. Kg3 {[%emt 0:00:40]} Qcf4# {[%emt 0:00:07]} 0-1

[Event "2nd Kalyan Dombivali 2019"]
[Site "Kalyan"]
[Date "2019.02.03"]
[Round "10"]
[White "Lad Mandar Pradip"]
[Black "Awade Pradeep"]
[Result "1-0"]
[ECO "E62"]
[WhiteElo "1364"]
[BlackElo "1538"]
[Annotator "NA RC"]
[PlyCount "51"]
[EventDate "2019.01.28"]
[EventType "swiss"]
[EventRounds "10"]
[EventCountry "IND"]
[SourceTitle "playchess.com"]
[Source "ChessBase"]
[SourceQuality "1"]
[TimeControl "5400+30"]

1. d4 {[%emt 0:00:03]} Nf6 {[%emt 0:03:07]} 2. c4 {[%emt 0:00:07]} g6 {[%emt 0:00:03]} 3. Nc3 {[%emt 0:00:22]} Bg7 {[%emt 0:00:06]} 4. g3 {[%emt 0:00:33]} O-O {[%emt 0:00:23]} 5. Bg2 {[%emt 0:00:04]} d6 {[%emt 0:00:20]} 6. Nf3 {[%emt 0:00:12]} Nc6 {[%emt 0:00:34]} 7. O-O {[%emt 0:00:48]} Bf5 {[%emt 0:05:07]} 8. Nh4 {[%emt 0:15:05]} Bd7 {[%emt 0:05:37]} 9. e4 {[%emt 0:07:15]} Qc8 {[%emt 0:02:40]} 10. f4 {[%emt 0:10:29]} Bh3 {[%emt 0:04:11]} 11. d5 {[%emt 0:03:50]} Nb8 {[%emt 0:05:38]} 12. e5 {[%emt 0:12:18]} Bxg2 {[%emt 0:07:50]} 13. exf6 {[%emt 0:01:16]} Bxf1 {[%emt 0:14:05]} 14. fxg7 {[%emt 0:00:12]} Bxc4 {[%emt 0:02:45]} 15. gxf8=Q+ Kxf8 {[%emt 0:00:33]} 16. Qd4 {[%emt 0:00:23]} e5 {[%emt 0:01:17]} 17. Qxc4 {[%emt 0:00:22]} f5 {[%emt 0:00:36]} 18. fxe5 {[%emt 0:00:08]} dxe5 {[%emt 0:00:01]} 19. Bh6+ {[%emt 0:00:12]} Ke8 {[%emt 0:00:23]} 20. d6 {[%emt 0:00:30]} c6 {[%emt 0:00:32]} 21. Qg8+ {[%emt 0:00:16]} Kd7 {[%emt 0:00:12]} 22. Qf7+ {[%emt 0:00:27]} Kxd6 {[%emt 0:00:36]} 23. Rd1+ {[%emt 0:00:06]} Kc5 {[%emt 0:00:03]} 24. Be3+ {[%emt 0:00:10]} Kb4 {[%emt 0:00:21]} 25. Qb3+ {[%emt 0:00:10]} Ka5 {[%emt 0:00:24]} 26. Qa4# {[%emt 0:00:04]} 1-0

[Event "2nd Kalyan Dombivali 2019"]
[Site "Kalyan"]
[Date "2019.02.03"]
[Round "10"]
[White "Pethe Varad"]
[Black "Pednekar Ayush"]
[Result "1/2-1/2"]
[ECO "A85"]
[WhiteElo "1359"]
[BlackElo "1501"]
[Annotator "NA RC"]
[PlyCount "63"]
[EventDate "2019.01.28"]
[EventType "swiss"]
[EventRounds "10"]
[EventCountry "IND"]
[SourceTitle "playchess.com"]
[Source "ChessBase"]
[SourceQuality "1"]
[TimeControl "5400+30"]

1. d4 {[%emt 0:00:00]} f5 {[%emt 0:00:00]} 2. c4 {[%emt 0:00:07]} Nf6 {[%emt 0:00:00]} 3. Nc3 {[%emt 0:00:19]} g6 {[%emt 0:00:20]} 4. Bg5 {[%emt 0:00:36]} Bg7 {[%emt 0:00:06]} 5. e3 {[%emt 0:00:48]} b6 {[%emt 0:00:19]} 6. Nf3 {[%emt 0:03:56]} Bb7 {[%emt 0:00:42]} 7. Bd3 {[%emt 0:00:39]} e6 {[%emt 0:10:52]} 8. e4 {[%emt 0:03:00]} h6 {[%emt 0:07:15]} 9. Bxf6 {[%emt 0:03:07]} Bxf6 {[%emt 0:02:05]} 10. exf5 {[%emt 0:00:45]} exf5 {[%emt 0:02:43]} 11. Qe2+ {[%emt 0:00:33]} Kf7 {[%emt 0:10:37]} 12. O-O {[%emt 0:02:15]} Re8 {[%emt 0:02:27]} 13. Qd1 {[%emt 0:00:09]} Bxf3 {[%emt 0:02:40]} 14. Qxf3 {[%emt 0:00:21]} Nc6 {[%emt 0:01:18]} 15. Ne2 {[%emt 0:05:24]} Kg7 {[%emt 0:01:45]} 16. Rad1 {[%emt 0:01:08]} Kh7 {[%emt 0:18:42]} 17. a3 {[%emt 0:00:52]} Rf8 {[%emt 0:01:26]} 18. Bc2 {[%emt 0:01:04]} Qe7 {[%emt 0:01:40]} 19. Ba4 {[%emt 0:02:14]} Rae8 {[%emt 0:03:59]} 20. Nc3 {[%emt 0:13:57]} Nxd4 {[%emt 0:05:05]} 21. Qf4 {[%emt 0:00:01]} Be5 {[%emt 0:03:39]} 22. Qe3 {[%emt 0:01:19]} f4 {[%emt 0:03:22]} 23. Qe4 {[%emt 0:04:13]} c5 {[%emt 0:04:18]} 24. f3 {[%emt 0:01:24]} Rf5 {[%emt 0:03:31]} 25. Kh1 {[%emt 0:02:15]} Rb8 {[%emt 0:01:55]} 26. Ne2 {[%emt 0:01:49]} Qe6 {[%emt 0:04:20]} 27. Rfe1 {[%emt 0:03:48]} Qd6 28. Nxd4 cxd4 29. Qd5 Qxd5 30. cxd5 d6 31. Rc1 Rf7 32. Ra1 1/2-1/2